bitfinex/quotes_SOLUSD_20260115
["timestamp","ask_amount","ask_price","bid_price","bid_amount"]
[1768494264458,0.89563361,143.48,143.44,0.91124481]
[1768494264752,7.86539456,143.48,143.44,0.91124481]
[1768494267638,7.86539456,143.48,143.44,7.88274441]
[1768494267952,12.72,143.51,143.45,0.91124481]
[1768494268161,31.09394807,143.52,143.48,0.91124481]
[1768494268362,6.96835018,143.51,143.48,0.91124481]
[1768494268836,7.92277843,143.51,143.47,0.91124481]
[1768494269638,11.28008613,143.51,143.47,0.91124481]
[1768494272558,10.32565788,143.51,143.48,0.91124481]
[1768494272744,23.9995209,143.52,143.48,0.91124481]
[1768494273558,3.3573077,143.51,143.48,0.91124481]
[1768494273742,10.3256072,143.51,143.48,0.91124481]
[1768494274270,11.28003545,143.51,143.48,0.91124481]
[1768494274772,11.28003545,143.51,143.46,6.9703814]
[1768494274773,11.28003545,143.51,143.47,0.91124481]
[1768494275267,3.3573077,143.5,143.47,0.91124481]
[1768494275638,11.28003545,143.51,143.47,0.91124481]
[1768494276358,7.92272775,143.51,143.47,0.91124481]
[1768494276559,11.28003545,143.51,143.47,0.91124481]
[1768494277772,11.28003545,143.51,143.47,7.88133798]
[1768494278070,11.28003545,143.51,143.47,0.91124481]
[1768494278272,11.28003545,143.51,143.47,7.88130335]
[1768494278473,3.3573077,143.5,143.47,0.91124481]
[1768494279675,3.3573077,143.5,143.47,7.8812896]
[1768494279884,3.3573077,143.5,143.47,0.91124481]
[1768494280980,10.32607213,143.5,143.47,0.91124481]
[1768494281951,6.96876443,143.5,143.47,0.91124481]
[1768494282370,11.28001184,143.51,143.47,7.88122948]
[1768494282573,11.28001184,143.51,143.48,0.91124481]
[1768494284182,7.92270414,143.51,143.48,0.91124481]
[1768494284477,11.28001184,143.51,143.48,0.91124481]
[1768494285174,7.92270414,143.51,143.48,0.91124481]
[1768494285377,11.28001184,143.51,143.48,0.91124481]
[1768494286274,4.31173595,143.51,143.48,0.91124481]
[1768494286779,11.27994149,143.51,143.48,0.91124481]
[1768494287274,3.3573077,143.5,143.46,0.91124481]
[1768494287461,4.31173595,143.5,143.46,7.88159042]
[1768494287661,3.3573077,143.47,143.42,0.91124481]
[1768494287879,3.3573077,143.47,143.43,0.91124481]
[1768494288174,3.3573077,143.47,143.44,0.91124481]
[1768494288473,3.3573077,143.48,143.45,0.91124481]
[1768494289278,3.3573077,143.47,143.45,0.91124481]
[1768494289666,11.28213501,143.47,143.44,0.91124481]
[1768494289856,7.92482731,143.47,143.44,0.91124481]
[1768494290055,10.32770676,143.47,143.44,0.91124481]
[1768494295890,18.31693359,143.51,143.45,0.86768151]
[1768494296192,3.3573077,143.49,143.45,0.86768151]
[1768494296681,0.89628926,143.47,143.43,7.83955633]
[1768494296883,4.19359694,143.47,143.44,7.83917195]
[1768494297287,3.3573077,143.47,143.44,7.83917195]
[1768494298194,6.96985061,143.48,143.44,7.83917195]
[1768494298390,3.3573077,143.47,143.45,0.86768151]
[1768494298895,3.3573077,143.47,143.44,7.83917195]
[1768494299890,3.3573077,143.47,143.44,0.86768151]
[1768494300100,11.22344757,143.48,143.44,7.83922251]
[1768494300401,3.3573077,143.47,143.44,0.86768151]
[1768494300577,3.29730769,143.47,143.44,0.86768151]
[1768494301208,3.29730769,143.47,143.45,0.86768151]
[1768494301374,7.86613987,143.48,143.45,0.86768151]
[1768494301570,3.3573077,143.46,143.44,0.86768151]
[1768494301799,0.89628926,143.47,143.4,17.43321405]
[1768494302000,10.32830709,143.46,143.43,0.86768151]
[1768494302190,3.3573077,143.45,143.43,0.86768151]
[1768494302880,4.25359696,143.44,143.4,0.86768151]
[1768494303098,0.89628926,143.44,143.4,0.86768151]
[1768494303275,0.89628926,143.44,143.4,7.84112928]
[1768494303478,4.25359696,143.44,143.4,7.84112928]
[1768494304294,10.32886761,143.44,143.41,0.86768151]
[1768494305280,3.3573077,143.43,143.41,0.86768151]
[1768494305481,10.32886761,143.44,143.41,0.86768151]
[1768494306782,0.89628926,143.42,143.38,0.86768151]
[1768494307096,3.3573077,143.41,143.38,0.86768151]
[1768494307280,3.3573077,143.4,143.37,0.86768151]
[1768494307480,3.3573077,143.41,143.37,0.86768151]
[1768494308401,4.25359696,143.4,143.36,0.86768151]
[1768494308698,3.3573077,143.39,143.36,0.86768151]
[1768494309101,10.33137603,143.39,143.36,0.86768151]
[1768494309314,3.3573077,143.39,143.36,0.86768151]
[1768494309511,7.87000005,143.4,143.36,0.86768151]
[1768494309807,10.33101849,143.4,143.37,0.86768151]
[1768494309988,3.3573077,143.39,143.36,0.86768151]
[1768494310487,3.3573077,143.39,143.36,7.84309365]
[1768494311106,3.3573077,143.38,143.35,6.97584702]
[1768494311303,3.3573077,143.38,143.34,0.86768151]
[1768494311486,0.89628926,143.39,143.34,0.86768151]
[1768494311487,4.25359696,143.39,143.36,6.97541046]
[1768494311692,3.3573077,143.39,143.36,6.97541046]
[1768494313111,3.3573077,143.39,143.35,6.97593303]
[1768494313313,3.3573077,143.39,143.36,0.86768151]
[1768494313502,0.89628926,143.42,143.36,0.86768151]
[1768494313707,3.3573077,143.41,143.36,0.86768151]
[1768494313910,3.3573077,143.42,143.36,0.86768151]
[1768494314899,3.3573077,143.42,143.38,0.86768151]
[1768494315612,11.22613877,143.42,143.38,0.86768151]
[1768494315818,4.25359696,143.42,143.38,0.86768151]
[1768494317115,4.25359696,143.42,143.38,7.84195514]
[1768494317318,11.2262743,143.42,143.38,7.84195514]
[1768494317509,4.25359696,143.4,143.37,6.97488046]
[1768494317816,4.25359696,143.39,143.36,6.97534055]
[1768494318033,0.89628926,143.4,143.36,7.84302206]
[1768494318332,4.25359696,143.4,143.37,0.86768151]
[1768494318611,3.3573077,143.4,143.37,0.86768151]
[1768494318821,3.3573077,143.41,143.37,0.86768151]
[1768494318990,3.3573077,143.4,143.37,7.84257158]
[1768494320413,3.3573077,143.42,143.38,0.86768151]
[1768494320616,3.3573077,143.42,143.38,0.83768151]
[1768494321397,3.3573077,143.42,143.38,7.78168428]
[1768494322216,11.2030232,143.42,143.38,7.78168428]
[1768494322730,3.3573077,143.41,143.38,7.78168428]
[1768494323198,0.87306184,143.41,143.38,0.80768151]
[1768494323707,0.87306184,143.41,143.38,7.78207152]
[1768494324098,11.20338478,143.41,143.38,0.80768151]
[1768494324520,11.20305287,143.42,143.38,7.78208331]
[1768494324706,0.92399028,143.41,143.38,0.80768151]
[1768494324909,7.89667361,143.42,143.38,0.80768151]
[1768494325112,3.3573077,143.41,143.38,0.80768151]
[1768494325603,10.33033261,143.41,143.38,0.80768151]
[1768494326798,11.25432289,143.41,143.38,0.80768151]
[1768494327312,13.14880323,143.41,143.38,0.80768151]
[1768494327627,7.89701519,143.41,143.38,0.80768151]
[1768494327810,13.14880323,143.41,143.38,0.77768151]
[1768494328519,6.17577832,143.4,143.36,6.97523122]
[1768494329299,0.92399028,143.38,143.34,62.4]
[1768494329526,0.92399028,143.38,143.32,5.25178804]
[1768494329527,6.17577832,143.38,143.32,62.4]
[1768494329705,13.15049914,143.38,143.34,6.97628681]
[1768494329904,13.15049914,143.38,143.34,7.86993978]
[1768494330642,0.92399028,143.37,143.33,0.89365297]
[1768494330802,6.17577832,143.35,143.31,7.87126076]
[1768494330997,0.92399028,143.35,143.32,0.89365297]
[1768494331312,6.17577832,143.36,143.32,7.87098312]
[1768494331627,19.6943721,143.39,143.34,0.89365297]
[1768494331835,6.9743721,143.39,143.35,0.89365297]
[1768494332709,13.14945938,143.4,143.35,0.89365297]
[1768494333530,5.25178804,143.39,143.35,0.89365297]
[1768494334517,7.89767134,143.4,143.36,0.89365297]
[1768494334826,5.25178804,143.39,143.36,0.89365297]
[1768494335125,5.25178804,143.4,143.36,0.89365297]
[1768494335322,13.14897253,143.41,143.36,0.89365297]
[1768494336124,24.94439385,143.42,143.36,0.89365297]
[1768494336627,25.86838413,143.42,143.37,7.86861286]
[1768494337814,25.86838413,143.42,143.38,0.89365297]
[1768494338327,5.25178804,143.41,143.38,0.89365297]
[1768494338726,25.86838413,143.42,143.38,0.89365297]
[1768494338924,20.61659609,143.42,143.38,0.89365297]
[1768494339228,5.25178804,143.44,143.39,0.89365297]
[1768494339428,6.17577832,143.44,143.39,0.89365297]
[1768494339733,0.92399028,143.45,143.4,0.89365297]
[1768494340935,6.97107083,143.45,143.41,0.89365297]
[1768494341232,0.92399028,143.48,143.41,6.14544101]
[1768494341432,6.17577832,143.48,143.42,0.89365297]
[1768494341619,6.17577832,143.48,143.42,0.86365297]
[1768494341620,6.17577832,143.47,143.42,0.86365297]
[1768494342937,13.14629243,143.47,143.42,7.83597452]
[1768494343134,13.14629243,143.47,143.42,6.97232155]
[1768494343616,13.14629243,143.47,143.43,0.89365297]
[1768494343815,5.25178804,143.48,143.43,0.89365297]
[1768494344018,6.17577832,143.49,143.43,0.89365297]
[1768494344638,0.92399028,143.49,143.43,0.89365297]
[1768494344932,6.17577832,143.49,143.45,0.89365297]
[1768494345140,0.92399028,143.48,143.44,6.97155605]
[1768494346532,6.17577832,143.47,143.39,24.40895459]
[1768494346841,0.92399028,143.46,143.4,5.25178804]
[1768494347042,0.92399028,143.46,143.41,0.89365297]
[1768494347342,5.25178804,143.47,143.42,0.89365297]
[1768494347536,6.17577832,143.47,143.42,0.89365297]
[1768494347735,6.97058413,143.46,143.42,7.83611332]
[1768494348542,12.22237217,143.46,143.42,0.86365297]
[1768494348762,0.92399028,143.45,143.41,69.37290106]
[1768494349455,13.14636245,143.46,143.41,69.37290106]
[1768494349640,13.14636245,143.46,143.41,70.26655403]
[1768494349951,13.14636245,143.46,143.42,0.89365297]
[1768494350329,13.14636245,143.46,143.42,0.86365297]
[1768494350530,0.92399028,143.44,143.4,69.37333114]
[1768494351731,7.89582902,143.44,143.4,69.37333114]
[1768494352758,13.14761706,143.44,143.4,69.37333114]
[1768494353263,7.89582902,143.44,143.4,70.22732848]
[1768494353552,13.14761706,143.44,143.4,70.22732848]
[1768494354541,7.89582902,143.44,143.4,70.22732848]
[1768494354949,0.9205271,143.47,143.41,0.85399734]
[1768494355156,6.17231514,143.47,143.41,0.85399734]
[1768494355355,0.9205271,143.47,143.42,0.85399734]
[1768494355553,6.17231514,143.48,143.42,0.85399734]
[1768494355739,0.9205271,143.48,143.43,0.85399734]
[1768494356145,6.17231514,143.48,143.43,0.85399734]
[1768494357562,7.89062537,143.47,143.43,0.85399734]
[1768494357863,13.14241341,143.47,143.43,0.85399734]
[1768494358440,6.17231514,143.46,143.42,0.85399734]
[1768494358866,0.9205271,143.45,143.41,7.82681949]
[1768494359651,12.22266649,143.46,143.42,0.85399734]
[1768494360055,13.14319359,143.46,143.42,0.85399734]
[1768494360762,7.89198873,143.45,143.42,0.85399734]
[1768494361160,13.14377677,143.45,143.42,0.85399734]
[1768494361673,13.14377677,143.45,143.41,0.85399734]
[1768494361975,7.89198873,143.45,143.41,0.85399734]
[1768494362265,6.17231514,143.44,143.4,0.85399734]
[1768494363352,13.14412095,143.44,143.4,0.85399734]
[1768494363545,7.89233291,143.44,143.4,7.82735326]
[1768494364670,6.97180581,143.44,143.41,0.85399734]
[1768494365851,7.89182161,143.45,143.41,7.82698245]
[1768494366165,6.97077532,143.46,143.42,0.85399734]
[1768494366349,7.89130242,143.46,143.42,0.85399734]
[1768494366766,13.14309046,143.46,143.42,0.85399734]
[1768494367583,7.89083322,143.47,143.43,0.85399734]
[1768494367745,12.22209416,143.47,143.43,0.85399734]
[1768494368349,13.14262126,143.47,143.43,0.85399734]
[1768494368765,6.97030612,143.47,143.42,0.85399734]
[1768494368968,12.22209416,143.47,143.43,0.85399734]
[1768494369470,6.97030612,143.47,143.43,0.85399734]
[1768494369675,6.96934037,143.49,143.44,0.85399734]
[1768494370973,6.96934037,143.49,143.44,7.82511912]
[1768494371275,6.96934037,143.49,143.45,0.85399734]
[1768494371748,12.22112841,143.49,143.45,0.85399734]
[1768494372370,6.96934037,143.49,143.46,0.85399734]
[1768494373152,6.90934038,143.49,143.46,0.85399734]
[1768494374563,12.16112842,143.49,143.46,0.85399734]
[1768494374761,13.08165552,143.49,143.44,6.97142828]
[1768494375076,13.08165552,143.49,143.44,7.82542562]
[1768494375956,5.25178804,143.46,143.41,63.25399734]
[1768494376156,5.25178804,143.46,143.41,7.82668045]
[1768494376467,5.25178804,143.45,143.41,0.85399734]
[1768494376878,6.97152824,143.45,143.4,7.82735955]
[1768494377174,5.25178804,143.44,143.4,7.82735955]
[1768494377673,7.89205534,143.45,143.4,7.82735955]
[1768494377674,7.89205534,143.45,143.41,0.85399734]
[1768494377874,6.97152824,143.45,143.41,0.85399734]
[1768494378178,13.14384338,143.45,143.41,0.85399734]
[1768494378581,13.14384338,143.45,143.4,6.97336221]
[1768494378582,6.17231514,143.44,143.4,0.85399734]
[1768494378996,13.1441545,143.44,143.4,0.85399734]
[1768494379488,7.89236646,143.44,143.4,7.82749735]
[1768494379678,5.25178804,143.45,143.41,0.85399734]
[1768494379679,6.97125511,143.45,143.41,0.85399734]
[1768494379990,13.14357025,143.45,143.4,63.25399734]
[1768494380191,5.25178804,143.44,143.4,63.25399734]
[1768494380369,6.17231514,143.44,143.4,63.25399734]
[1768494380771,24.39893025,143.45,143.38,0.92665018]
[1768494380772,0.88152815,143.41,143.38,0.92665018]
[1768494380999,0.88152815,143.4,143.36,0.92665018]
[1768494381166,6.13331619,143.4,143.36,0.92665018]
[1768494381495,6.13331619,143.39,143.34,0.92665018]
[1768494381667,5.25178804,143.38,143.34,0.92665018]
[1768494382888,12.22647315,143.38,143.34,0.92665018]
[1768494383787,13.1080013,143.38,143.34,0.92665018]
[1768494384097,6.13331619,143.36,143.32,0.92665018]
[1768494384496,0.88152815,143.36,143.32,0.92665018]
[1768494384674,5.25178804,143.35,143.32,0.92665018]
[1768494385163,12.22788567,143.35,143.32,0.92665018]
[1768494385591,13.08182126,143.35,143.3,7.8295867]
[1768494385971,13.08182126,143.35,143.31,0.85138228]
[1768494386589,12.22788567,143.35,143.31,0.85138228]
[1768494386992,13.08182126,143.35,143.31,0.85138228]
[1768494387368,11.19402919,143.35,143.31,0.85138228]
[1768494388389,4.21793156,143.34,143.3,0.85138228]
[1768494388596,3.36399597,143.33,143.3,0.85138228]
[1768494388793,0.85393559,143.31,143.29,0.2]
[1768494388993,4.21793156,143.3,143.26,0.85138228]
[1768494389192,3.36399597,143.3,143.26,6.98027014]
[1768494389382,0.85393559,143.33,143.27,0.85138228]
[1768494389694,11.19435126,143.34,143.28,0.85138228]
[1768494389893,7.82995927,143.35,143.28,0.85138228]
[1768494390086,11.19395524,143.35,143.28,0.85138228]
[1768494391094,11.19395524,143.35,143.3,0.85138228]
[1768494391700,6.97602368,143.35,143.3,0.85138228]
[1768494392793,6.97602368,143.35,143.31,0.85138228]
[1768494392980,21.65459045,143.38,143.32,0.85138228]
[1768494393504,4.21793156,143.38,143.32,0.85138228]
[1768494394484,11.19254088,143.38,143.32,0.85138228]
[1768494394690,11.19254088,143.38,143.34,0.85138228]
[1768494394885,7.82854491,143.38,143.34,0.85138228]
[1768494395198,3.36399597,143.44,143.37,3.36399597]
[1768494395580,3.36399597,143.44,143.36,3.36399597]
[1768494396314,3.36399597,143.41,143.34,3.36399597]
[1768494396984,0.85393559,143.4,143.34,3.36399597]
[1768494397485,4.21793156,143.4,143.33,33.52567628]
[1768494397798,0.85393559,143.39,143.33,33.52567628]
[1768494397997,0.85393559,143.39,143.33,20.80567628]
[1768494398385,0.85393559,143.39,143.34,6.9764197]
[1768494398904,0.85393559,143.38,143.34,10.34041567]
[1768494399100,0.85393559,143.37,143.33,6.97678739]
[1768494399690,0.85393559,143.37,143.33,10.34078336]
[1768494399900,0.85393559,143.37,143.33,6.97678739]
[1768494400200,0.7939356,143.37,143.33,6.97678739]
[1768494400794,0.73393561,143.37,143.33,6.97678739]
[1768494403396,0.73393561,143.37,143.33,69.37678739]
[1768494403898,0.67393562,143.37,143.33,69.37678739]
[1768494405000,10.33910679,143.37,143.33,62.4]
[1768494405594,6.97511082,143.37,143.33,62.4]
[1768494405802,0.85393559,143.36,143.33,62.4]
[1768494407705,0.80392952,143.36,143.33,62.4]
[1768494407909,0.74392953,143.36,143.33,62.4]
[1768494408204,6.97560412,143.36,143.33,62.4]
[1768494408401,10.33960009,143.36,143.33,62.4]
[1768494408578,3.36399597,143.35,143.31,62.4]
[1768494408783,3.36399597,143.35,143.29,69.37869679]
[1768494409587,3.36399597,143.34,143.29,69.37869679]
[1768494409811,3.36399597,143.35,143.29,69.37869679]
[1768494409985,0.85393559,143.34,143.29,69.37869679]
[1768494410909,0.88021845,143.33,143.29,69.37869679]
[1768494411111,0.88021845,143.32,143.27,6.97975608]
[1768494411294,0.88021845,143.31,143.27,6.97975608]
[1768494411612,0.88021845,143.31,143.26,72.96664263]
[1768494412094,0.88021845,143.3,143.26,69.38022177]
[1768494412496,0.88021845,143.3,143.26,62.4]
[1768494413008,0.88021845,143.29,143.26,69.38027998]
[1768494413202,0.88021845,143.29,143.26,6.98027998]
[1768494413406,0.88021845,143.29,143.25,69.58074224]
[1768494413608,0.88021845,143.29,143.25,7.18074224]
[1768494414519,7.85867601,143.3,143.26,7.18821227]
[1768494414710,0.82021846,143.3,143.26,10.3442688]
[1768494415018,7.79859889,143.3,143.26,6.98027283]
[1768494415223,0.82021846,143.3,143.26,6.98027283]
[1768494416209,0.82021846,143.3,143.26,7.23927932]
[1768494416420,0.82021846,143.3,143.26,69.63927932]
[1768494416910,0.82021846,143.3,143.26,69.38027283]
[1768494418617,0.88021845,143.29,143.26,69.38027283]
[1768494422016,11.22321238,143.29,143.26,62.4]
[1768494422202,7.85878579,143.3,143.26,62.63352451]
[1768494422914,7.7987858,143.3,143.26,62.63352451]
[1768494424215,7.85831366,143.31,143.27,0.22548881]
[1768494424397,119.0,143.4,143.26,69.38019651]
[1768494424398,0.88021845,143.36,143.29,3.36399597]
[1768494424603,0.88021845,143.36,143.31,3.58948478]
[1768494425021,4.24421442,143.35,143.29,0.22154005]
[1768494425203,0.88021845,143.34,143.29,0.22154005]
[1768494425702,0.88021845,143.33,143.28,12.93763664]
[1768494425902,0.88021845,143.32,143.27,3.58163261]
[1768494426097,7.85770512,143.32,143.28,6.97934115]
[1768494426319,0.88021845,143.31,143.25,13.13763664]
[1768494426517,10.34148264,143.32,143.25,7.39822299]
[1768494426518,0.88021845,143.29,143.25,7.39822299]
[1768494426821,0.88021845,143.29,143.26,6.98019193]
[1768494427007,0.88021845,143.31,143.27,0.21377807]
[1768494427193,0.88021845,143.31,143.26,6.98019193]
[1768494427391,0.88021845,143.31,143.26,7.19397]
[1768494427615,0.88021845,143.31,143.27,0.21377807]
[1768494427995,4.24421442,143.3,143.26,7.19015575]
[1768494428821,7.85872024,143.3,143.26,0.20996382]
[1768494429320,7.85872024,143.3,143.26,7.19016236]
[1768494431215,11.22216875,143.31,143.27,0.19878192]
[1768494431414,6.97752867,143.32,143.28,0.19878192]
[1768494431610,7.85774712,143.32,143.28,0.19878192]
[1768494431817,11.22174309,143.32,143.28,0.19878192]
[1768494432236,0.88021845,143.31,143.27,62.4]
[1768494432405,0.88021845,143.31,143.27,62.59513991]
[1768494432812,0.88021845,143.31,143.27,62.4]
[1768494432813,0.88021845,143.3,143.27,62.4]
[1768494433821,0.88021845,143.29,143.27,62.4]
[1768494434122,10.34193186,143.31,143.26,6.98004376]
[1768494435426,17.44400301,143.32,143.26,7.22450672]
[1768494435629,3.36399597,143.31,143.26,7.22450672]
[1768494436025,0.88021845,143.3,143.26,7.22450672]
[1768494436210,0.88021845,143.29,143.25,69.58070456]
[1768494436524,0.88021845,143.28,143.25,7.18070456]
[1768494438130,4.24421442,143.27,143.25,0.2]
[1768494438314,0.88021845,143.27,143.25,0.2]
[1768494439734,0.88021845,143.27,143.24,0.2]
[1768494439735,0.88021845,143.26,143.24,0.2]
[1768494440935,0.77348126,143.25,143.24,0.2]
[1768494441226,0.77348126,143.25,143.23,0.2]
[1768494441633,10.34459499,143.26,143.23,0.2]
[1768494441634,11.11807625,143.26,143.23,0.2]
[1768494442610,7.75298128,143.28,143.24,0.61800177]
[1768494442808,0.77348126,143.32,143.26,0.61489584]
[1768494443020,0.77348126,143.3,143.26,0.61489584]
[1768494443630,7.75198661,143.3,143.26,7.59521034]
[1768494444328,0.77348126,143.29,143.25,6.98063364]
[1768494447516,0.77348126,143.29,143.24,18.06447847]
[1768494447517,7.75258777,143.29,143.24,7.5928996]
[1768494448430,0.78401856,143.28,143.24,7.5928996]
[1768494448634,0.72401857,143.28,143.24,7.5928996]
[1768494449734,7.64347613,143.28,143.24,7.5928996]
[1768494450242,12.23969149,143.28,143.23,69.58159447]
[1768494450431,12.23969149,143.28,143.23,62.6]
[1768494450432,5.26023394,143.27,143.23,62.6]
[1768494450736,6.98031551,143.26,143.23,62.6]
[1768494450938,6.98031551,143.26,143.23,0.2]
[1768494451110,6.92031552,143.26,143.23,0.2]
[1768494451735,7.70433408,143.26,143.23,0.2]
[1768494452045,7.64433409,143.26,143.23,0.2]
[1768494452618,7.76396552,143.27,143.23,0.90317062]
[1768494452831,0.78401856,143.27,143.23,7.8848868]
[1768494454941,0.78401856,143.26,143.23,0.2]
[1768494455451,0.78401856,143.24,143.23,0.2]
[1768494456520,0.78401856,143.24,143.22,0.2]
[1768494457051,13.02603006,143.23,143.19,7.95943465]
[1768494457234,7.76579612,143.23,143.19,7.95943465]
[1768494457741,0.78401856,143.22,143.19,0.2]
[1768494457922,0.78401856,143.21,143.19,0.2]
[1768494458120,6.0442525,143.2,143.18,0.2]
[1768494458341,6.0442525,143.2,143.18,1e-08]
[1768494458530,0.78401856,143.19,143.18,1e-08]
[1768494458727,6.0442525,143.19,143.18,1e-08]
[1768494458929,0.78401856,143.19,143.18,1e-08]
[1768494459227,7.76774647,143.19,143.18,1e-08]
[1768494459926,0.78401856,143.18,143.14,6.98605538]
[1768494460124,0.78401856,143.17,143.13,7.76223467]
[1768494461036,0.78401856,143.17,143.12,7.18703042]
[1768494461244,0.78401856,143.16,143.12,7.18703042]
[1768494461530,0.78401856,143.16,143.12,7.96279387]
[1768494464456,0.78401856,143.15,143.12,7.18703042]
[1768494464768,0.78401856,143.14,143.12,7.18698416]
[1768494464931,0.78401856,143.15,143.12,7.18698416]
[1768494466024,0.78401856,143.18,143.13,0.77576345]
[1768494466247,0.78401856,143.17,143.13,0.77576345]
[1768494466456,0.78401856,143.17,143.13,7.76212926]
[1768494466457,7.7687852,143.17,143.13,7.76212926]
[1768494466655,0.78401856,143.15,143.12,0.2]
[1768494466854,6.0442525,143.15,143.12,0.2]
[1768494467230,6.0442525,143.17,143.13,7.76229693]
[1768494467431,0.78401856,143.17,143.13,7.76229693]
[1768494467930,0.78401856,143.17,143.13,6.98653348]
[1768494469554,0.78401856,143.16,143.13,6.98653348]
[1768494472231,0.72220577,143.17,143.13,7.71352591]
[1768494472859,0.72220577,143.16,143.13,7.71352591]
[1768494474460,0.72220577,143.16,143.13,6.98653348]
[1768494474664,0.72220577,143.16,143.13,7.71352591]
[1768494476841,7.70788512,143.15,143.12,0.2]
[1768494478755,7.70788512,143.15,143.12,1e-08]
[1768494478959,25.17208351,143.15,143.12,1e-08]
[1768494479141,0.72220577,143.19,143.15,0.05192689]
[1768494479346,0.72220577,143.19,143.15,5.31216083]
[1768494479756,0.72220577,143.19,143.14,5.31056192]
[1768494480149,0.72220577,143.17,143.12,0.05032799]
[1768494480356,0.72220577,143.17,143.13,5.26023394]
[1768494480553,0.72220577,143.17,143.13,5.31056192]
[1768494481357,7.70730717,143.17,143.13,5.31056192]
[1768494482258,0.72220577,143.16,143.13,5.26023394]
[1768494482468,0.72220577,143.13,143.12,1e-08]
[1768494482761,5.98243971,143.13,143.09,0.2]
[1768494482959,0.72220577,143.12,143.09,0.2]
[1768494483656,7.70983766,143.11,143.09,0.2]
[1768494484381,6.98736681,143.12,143.09,0.2]
[1768494484589,20.44907485,143.13,143.09,0.24411388]
[1768494485376,20.44907485,143.13,143.09,7.23262841]
[1768494485668,20.44907485,143.13,143.09,12.49286235]
[1768494485887,20.44907485,143.13,143.09,7.23262841]
[1768494486468,20.44907485,143.13,143.09,0.2]
[1768494487886,43.17594751,143.13,143.09,0.2]
[1768494488085,0.72220577,143.12,143.09,0.2]
[1768494488468,6.98763189,143.11,143.09,0.2]
[1768494488786,6.98736962,143.12,143.09,0.2]
[1768494489358,0.72220577,143.1,143.04,5.48923272]
[1768494489691,12.68000001,143.09,143.05,7.21924841]
[1768494489870,12.62000002,143.09,143.05,7.21924841]
[1768494491100,6.9884263,143.1,143.06,0.22319301]
[1768494491268,0.72220577,143.12,143.08,0.22319301]
[1768494491467,12.74,143.1,143.08,0.22319301]
[1768494492470,12.74,143.1,143.08,7.21228731]
[1768494492685,12.74,143.1,143.07,7.20690908]
[1768494492997,12.74,143.1,143.07,12.46714302]
[1768494493699,12.74,143.1,143.08,6.98902171]
[1768494493900,12.68000001,143.1,143.08,6.98902171]
[1768494494379,6.98679881,143.13,143.09,7.20316918]
[1768494494700,12.52526797,143.11,143.09,7.20316918]
[1768494495008,12.52526797,143.11,143.09,0.21473203]
[1768494495306,12.52526797,143.11,143.09,7.20332403]
[1768494495591,12.52526797,143.11,143.09,12.46355797]
[1768494495794,12.46526798,143.11,143.09,12.46355797]
[1768494496091,12.345268,143.11,143.09,12.46355797]
[1768494496472,12.345268,143.11,143.09,74.86355797]
[1768494496666,12.345268,143.11,143.09,69.60332403]
[1768494497093,6.98679881,143.13,143.09,69.60332403]
[1768494497298,12.74,143.11,143.09,69.60332403]
[1768494497602,12.74,143.11,143.09,62.61473203]
[1768494497903,19.72770121,143.11,143.09,62.4]
[1768494498196,0.72220577,143.1,143.07,21.04431417]
[1768494498378,0.72220577,143.1,143.05,5.26023394]
[1768494498569,0.72220577,143.1,143.04,12.25126092]
[1768494498781,0.72220577,143.1,143.03,24.46700363]
[1768494498988,0.72220577,143.08,143.03,17.47564371]
[1768494499184,5.26023394,143.09,143.03,17.47564371]
[1768494499185,6.99056274,143.05,143.03,17.47564371]
[1768494499611,12.74,143.04,143.03,17.47564371]
[1768494500312,12.74,143.04,143.03,1e-08]
[1768494500624,13.46220577,143.04,143.03,1e-08]
[1768494501320,20.45325722,143.04,143.03,1e-08]
[1768494502313,0.72245838,143.03,143.02,1e-08]
[1768494502487,0.66245839,143.03,143.02,1e-08]
[1768494503389,7.65399862,143.03,143.02,1e-08]
[1768494504406,20.39399862,143.03,143.02,1e-08]
[1768494504813,7.65399862,143.03,143.02,1e-08]
[1768494505019,20.39399862,143.03,143.02,1e-08]
[1768494506011,7.65399862,143.03,143.02,1e-08]
[1768494506206,19.73154023,143.03,143.02,1e-08]
[1768494506905,20.42679252,143.03,143.02,1e-08]
[1768494507708,0.69525229,143.02,142.98,1.32278288]
[1768494509804,7.68777029,143.01,142.98,1.32278288]
[1768494510005,12.76,143.0,142.98,1.32278288]
[1768494510398,12.70999364,143.0,142.98,1.32278288]
[1768494510599,13.40524593,143.0,142.98,1.32278288]
[1768494511016,13.40524593,143.0,142.96,0.2]
[1768494511196,0.69525229,142.99,142.96,0.2]
[1768494511814,6.99398517,142.98,142.96,0.2]
[1768494512014,12.76,142.97,142.96,0.2]
[1768494513096,12.70999431,142.97,142.96,0.2]
[1768494513308,12.68001228,142.97,142.96,0.2]
[1768494513504,12.76,142.97,142.96,0.2]
[1768494514625,20.44972665,142.97,142.94,0.2]
[1768494516219,20.38972666,142.97,142.94,0.2]